bitfinex/quotes_ETHUSD_20220212
["timestamp","ask_amount","ask_price","bid_price","bid_amount"]
[1644699652079,13.53755673,2967.7,2967.6,0.48568968]
[1644699652381,14.02255673,2967.7,2967.6,0.48568968]
[1644699652780,14.02255673,2967.7,2967.6,8.968e-05]
[1644699653181,4.66264761,2967.7,2967.6,8.968e-05]
[1644699653579,8.94531712,2967.7,2967.6,8.968e-05]
[1644699653780,4.66264761,2967.7,2967.6,8.968e-05]
[1644699654023,6.55917538,2967.7,2967.6,8.968e-05]
[1644699654524,6.07417538,2967.7,2967.6,8.968e-05]
[1644699656221,11.07417538,2967.7,2967.6,8.968e-05]
[1644699656625,6.07417538,2967.7,2967.6,8.968e-05]
[1644699656923,11.07417538,2967.7,2967.6,8.968e-05]
[1644699657672,2.57764761,2967.7,2967.6,8.968e-05]
[1644699658571,2.07492661,2967.7,2967.6,8.968e-05]
[1644699660073,0.64105554,2967.7,2967.6,8.968e-05]
[1644699663024,0.64105554,2967.7,2967.6,0.48508968]
[1644699665872,2.07470457,2967.7,2967.6,0.48508968]
[1644699667879,2.89969918,2967.7,2967.6,0.48508968]
[1644699668479,0.97017936,2967.5,2967.0,0.1684]
[1644699668680,0.97017936,2967.5,2966.9,0.485]
[1644699669117,0.64105554,2967.2,2966.9,0.485]
[1644699670120,0.64105554,2967.2,2966.9,0.49431513]
[1644699671122,0.64105554,2967.2,2966.8,0.1685]
[1644699671320,0.64105554,2967.2,2966.9,0.00931513]
[1644699672322,0.64105554,2967.2,2966.8,0.1685]
[1644699672523,0.64105554,2967.2,2966.6,0.1685]
[1644699673977,0.64105554,2967.2,2966.7,0.485]
[1644699674279,0.97017936,2967.5,2966.7,0.485]
[1644699674280,0.29552777,2967.0,2966.7,0.485]
[1644699674477,0.64105554,2967.0,2966.7,0.485]
[1644699675078,0.64105554,2967.0,2966.7,0.49428916]
[1644699675577,0.64105554,2967.0,2966.7,3.89428916]
[1644699675981,0.64105554,2967.0,2966.7,3.885]
[1644699676434,0.64105554,2967.0,2966.7,3.89429047]
[1644699676629,1.43397466,2966.9,2966.7,3.40929047]
[1644699677226,1.43397466,2966.9,2966.7,3.4]
[1644699677425,1.43397466,2966.9,2966.7,3.40929057]
[1644699678425,1.43397466,2966.9,2966.7,3.4]
[1644699678629,1.43397466,2966.9,2966.7,3.40578509]
[1644699679626,0.29552777,2966.8,2966.7,3.4]
[1644699679827,2.07508795,2966.8,2966.7,3.40578509]
[1644699680678,2.07508795,2966.8,2966.7,3.4]
[1644699682083,0.64105554,2966.8,2966.7,3.4]
[1644699682284,0.64105554,2966.8,2966.7,4.885]
[1644699682482,0.64105554,2966.8,2966.7,5.0535]
[1644699683083,0.64105554,2966.8,2966.7,5.0035]
[1644699683932,0.64105554,2966.8,2966.7,4.9535]
[1644699684522,0.64105554,2966.8,2966.7,4.785]
[1644699684923,0.64105554,2966.8,2966.7,3.785]
[1644699693321,0.64105554,2966.8,2966.7,3.9535]
[1644699694123,0.64105554,2966.8,2966.7,3.785]
[1644699700018,0.64105554,2966.8,2966.7,3.9535]
[1644699702228,0.64105554,2966.8,2966.7,3.785]
[1644699703281,0.64105554,2966.8,2966.7,3.9535]
[1644699706925,0.64105554,2966.8,2966.7,4.9535]
[1644699707126,0.64105554,2966.8,2966.7,3.9535]
[1644699708528,0.64014694,2966.8,2966.7,3.9535]
[1644699708728,0.34552777,2966.8,2966.7,3.9535]
[1644699709130,0.64014694,2966.8,2966.7,3.785]
[1644699711476,0.97017936,2967.5,2966.8,5.15]
[1644699711678,1.43372434,2967.4,2967.2,6.057]
[1644699711875,1.43372434,2967.4,2967.3,0.485]
[1644699711877,1.25769353,2967.4,2967.3,0.485]
[1644699712075,0.97017936,2967.5,2967.3,1.485]
[1644699712277,0.64061631,2968.2,2967.3,1.785]
[1644699712480,0.64061631,2968.3,2967.3,2.29028347]
[1644699712680,0.64061631,2968.2,2967.3,2.29028347]
[1644699712879,0.64061631,2968.2,2967.3,2.59028347]
[1644699713078,0.64061631,2968.3,2967.3,2.32713]
[1644699713277,0.64061631,2968.2,2967.3,5.82713]
[1644699713480,0.64061631,2968.2,2967.3,6.12713]
[1644699713779,0.64061631,2968.3,2967.3,6.42713]
[1644699714030,0.64061631,2968.3,2967.3,5.82713]
[1644699714232,0.80891631,2968.2,2967.3,6.42713]
[1644699714430,2.04061609,2968.5,2967.3,6.59543]
[1644699714431,0.64061631,2968.3,2967.3,6.59543]
[1644699715431,0.64061631,2968.4,2967.5,6.057]
[1644699715729,0.64061631,2968.4,2967.7,0.84205]
[1644699715929,4.26501609,2968.7,2967.7,0.84205]
[1644699715930,4.04901631,2968.7,2967.8,3.77666666]
[1644699716132,3.88071631,2968.7,2967.8,3.77666666]
[1644699716331,0.64061631,2968.5,2967.8,3.77666666]
[1644699716529,0.64061631,2968.5,2967.8,0.485]
[1644699716732,0.64061631,2968.5,2967.8,3.86578437]
[1644699716931,0.64061631,2968.5,2967.8,3.56578437]
[1644699717230,0.64061631,2968.5,2967.8,4.16578437]
[1644699717672,3.2401,2968.7,2967.8,4.16578437]
[1644699717673,0.64061631,2968.6,2967.8,4.16578437]
[1644699719072,0.64061631,2968.6,2967.8,3.86578437]
[1644699719272,0.64061631,2968.6,2967.8,3.56578437]
[1644699719474,0.64061631,2968.6,2968.1,0.00983004]
[1644699719672,0.64061631,2968.6,2967.8,3.08078437]
[1644699719673,0.01966008,2968.0,2967.8,3.08078437]
[1644699719873,0.01966008,2968.0,2967.9,0.485]
[1644699720474,0.01966008,2968.0,2967.9,4.68012578]
[1644699722727,0.01966008,2968.0,2967.9,2.985]
[1644699722932,0.01966008,2968.0,2967.9,1.985]
[1644699723129,0.01966008,2968.0,2967.9,2.985]
[1644699723531,0.01966008,2968.0,2967.9,6.1993925]
[1644699723931,0.01966008,2968.0,2967.9,2.985]
[1644699724530,0.01966008,2968.0,2967.9,6.1]
[1644699724730,0.01966008,2968.0,2967.9,2.985]
[1644699724932,0.01966008,2968.0,2967.9,5.385]
[1644699726981,0.01966008,2968.0,2967.9,4.9]
[1644699727580,0.56027639,2968.2,2967.9,4.9]
[1644699728382,0.1683,2968.1,2967.9,4.9]
[1644699728583,0.1683,2968.3,2967.9,4.9]
[1644699728789,0.85661609,2968.6,2967.9,4.9]
[1644699729029,0.1683,2968.7,2967.9,4.9]
[1644699729030,2.02313772,2968.7,2967.9,4.9]
[1644699729229,2.15483772,2968.7,2968.0,0.00983023]
[1644699729430,3.15483772,2968.7,2968.0,0.00983023]
[1644699729827,2.15483772,2968.7,2968.0,0.00983023]
[1644699730228,2.15483772,2968.7,2967.9,4.9]
[1644699730429,1.02491609,2968.6,2968.0,0.00983057]
[1644699730633,0.85661609,2968.5,2968.0,0.00983057]
[1644699730834,0.1683,2968.4,2968.0,0.00983057]
[1644699731029,1.02491609,2968.4,2968.0,0.00983057]
[1644699731231,0.85803437,2968.2,2967.9,4.9]
[1644699731429,0.1683,2968.1,2967.9,4.9]
[1644699731635,0.1683,2968.1,2968.0,0.00983037]
[1644699731833,1.15661609,2968.4,2968.0,0.00983037]
[1644699731834,0.1683,2968.3,2968.0,0.00983037]
[1644699732034,1.43380757,2968.2,2968.0,0.00983037]
[1644699732235,0.1683,2968.1,2968.0,0.00983037]
[1644699732435,1.60210757,2968.1,2967.9,4.9]
[1644699732672,1.43380757,2968.0,2967.9,4.90983033]
[1644699733272,1.43299868,2968.0,2967.9,4.90983033]
[1644699733673,0.85661609,2968.4,2967.9,4.9]
[1644699733872,1.45661609,2968.4,2967.9,4.9]
[1644699734174,0.6,2968.4,2967.9,4.9]
[1644699734372,1.15661609,2968.4,2967.9,4.9]
[1644699734772,1.45661609,2968.4,2967.9,4.9]
[1644699735172,0.6,2968.4,2968.0,0.0098303]
[1644699735372,1.45661609,2968.5,2968.0,0.0098303]
[1644699735672,0.85661609,2968.4,2968.0,0.0098303]
[1644699735872,0.3,2968.4,2968.0,0.0098303]
[1644699736075,0.3,2968.4,2967.9,4.9]
[1644699736273,0.85661609,2968.4,2967.9,4.9]
[1644699736526,0.85661609,2968.4,2968.0,0.00983037]
[1644699736726,1.32491609,2968.4,2968.0,0.00983037]
[1644699736925,0.4683,2968.4,2968.0,0.00983037]
[1644699737324,0.4683,2968.4,2967.9,4.9]
[1644699737525,0.3,2968.4,2968.0,0.00983037]
[1644699737726,1.32491609,2968.5,2968.0,0.00983037]
[1644699737727,2.46742609,2968.3,2968.0,0.00983037]
[1644699737925,2.29912609,2968.3,2968.0,0.00983037]
[1644699738225,0.64263647,2968.1,2968.0,0.00983037]
[1644699738424,1.0,2968.2,2968.0,0.00983037]
[1644699738630,1.0,2968.2,2967.9,4.9]
[1644699738826,0.64268327,2968.0,2967.9,4.90983033]
[1644699739625,0.64268327,2968.0,2967.9,3.38036514]
[1644699739829,0.64268327,2968.0,2967.9,3.37053481]
[1644699741290,0.3,2968.0,2967.9,3.37053481]
[1644699741490,1.15661609,2968.0,2967.9,3.37053481]
[1644699741680,0.3,2968.0,2967.9,3.37053481]
[1644699741877,0.4683,2968.0,2967.9,3.37053481]
[1644699742077,0.3,2968.1,2967.9,3.37053481]
[1644699742278,0.1683,2968.0,2967.9,3.37053481]
[1644699743278,1.0251954,2968.0,2967.9,3.37053481]
[1644699743478,0.1683,2968.0,2967.9,3.37053481]
[1644699743678,0.1683,2968.0,2967.9,3.36477089]
[1644699743923,1.1683,2968.0,2967.9,3.36477089]
[1644699746326,0.1683,2968.0,2967.9,3.36477089]
[1644699746928,0.84272,2967.8,2966.9,0.25]
[1644699747127,0.64239883,2967.5,2966.6,0.00843244]
[1644699747330,0.64239883,2967.5,2967.1,0.03933165]
[1644699747528,0.94239883,2967.5,2967.1,0.03933165]
[1644699747775,1.24239883,2967.5,2967.1,0.03933165]
[1644699748175,2.42719883,2967.5,2966.6,0.00485334]
[1644699748575,1.7848,2967.5,2966.6,0.00485334]
[1644699748776,2.42719883,2967.5,2966.6,0.00485334]
[1644699749677,0.64239883,2967.4,2966.6,0.00485334]
[1644699749878,0.81089883,2967.4,2966.6,0.00485334]
[1644699750278,1.81089883,2967.4,2966.6,0.00485334]
[1644699750480,0.1685,2967.4,2966.6,0.00485334]
[1644699750678,1.81089883,2967.4,2966.6,0.00485334]
[1644699750878,0.1685,2967.4,2966.9,0.00983237]
[1644699751079,1.1685,2967.4,2966.9,0.00983237]
[1644699751533,0.1685,2967.4,2966.9,0.00983237]
[1644699751735,1.7848,2967.5,2966.6,0.87402461]
[1644699751931,0.64239883,2967.4,2966.7,0.0035791]
[1644699752132,0.64239883,2967.4,2967.0,0.00983208]
[1644699752330,2.42719883,2967.5,2967.0,0.00983208]
[1644699752930,2.42719883,2967.5,2966.9,0.485]
[1644699753332,1.43417083,2967.4,2967.1,0.00983189]
[1644699754133,1.43417083,2967.4,2966.9,0.485]
[1644699754335,1.43336194,2967.4,2967.1,0.00983189]
[1644699755376,1.43336194,2967.4,2966.9,0.485]
[1644699755574,1.43336194,2967.4,2967.1,0.00983189]
[1644699756172,1.7848,2967.5,2967.1,0.00983189]
[1644699756577,1.7848,2967.5,2966.9,0.485]
[1644699756776,1.7848,2967.5,2967.2,0.00983179]
[1644699757779,0.7685,2967.5,2967.1,3.4]
[1644699757981,0.4685,2967.5,2967.2,0.00983169]
[1644699758480,1.10977469,2967.5,2967.2,0.00983169]
[1644699758923,1.10977469,2967.5,2967.1,3.4]
[1644699759124,1.10977469,2967.5,2967.2,0.00983169]
[1644699759326,0.94127469,2967.5,2967.2,0.00983169]
[1644699759724,2.65,2967.4,2967.1,1.88000662]
[1644699759927,1.0,2967.3,2967.1,1.88000662]
[1644699760125,0.3,2967.2,2967.1,1.88000662]
[1644699760726,1.24127469,2967.5,2967.1,1.88000662]
[1644699760927,1.46130656,2967.4,2967.1,1.88000662]
[1644699761333,0.64127469,2967.3,2967.1,1.88000662]
[1644699761530,1.10977469,2967.3,2967.1,1.88000662]
[1644699761730,1.24127469,2967.2,2967.1,1.88000662]
[1644699762330,0.6,2967.2,2967.1,1.88000662]
[1644699762774,1.24127469,2967.2,2967.1,1.88000662]
[1644699763775,1.80977469,2967.3,2967.1,1.88000662]
[1644699763976,0.3,2967.2,2967.1,1.88000662]
[1644699764575,0.3,2967.3,2967.1,1.88000662]
[1644699764779,0.64127469,2967.3,2967.1,1.88000662]
[1644699765175,1.10977469,2967.4,2967.1,1.8898386]
[1644699766175,1.10977469,2967.4,2967.1,1.88000662]
[1644699766431,1.10977469,2967.4,2967.1,1.88983867]
[1644699767033,0.4685,2967.4,2967.1,1.88983867]
[1644699767234,0.64127469,2967.3,2967.1,1.88983867]
[1644699767438,0.64127469,2967.3,2967.1,1.88000662]
[1644699767635,0.64127469,2967.3,2967.1,1.88983867]
[1644699768032,0.64127469,2967.2,2967.1,1.88983867]
[1644699768236,0.3,2967.2,2967.1,1.88983867]
[1644699768633,0.3,2967.2,2967.1,1.88000662]
[1644699768834,1.10977469,2967.3,2967.1,1.88000662]
[1644699769034,0.64127469,2967.3,2967.1,1.88000662]
[1644699769434,0.94127469,2967.3,2967.1,1.88000662]
[1644699770184,0.3,2967.2,2967.1,1.8898386]
[1644699770982,0.64127469,2967.3,2967.1,1.88000662]
[1644699771384,0.3,2967.2,2967.1,1.88000662]
[1644699771786,0.94127469,2967.3,2967.1,1.88000662]
[1644699771987,0.3,2967.3,2967.1,1.88000662]
[1644699772188,0.64127469,2967.4,2967.1,1.88000662]
[1644699772388,0.64127469,2967.4,2967.1,1.8898386]
[1644699772589,0.6,2967.5,2967.1,1.8398386]
[1644699772590,1.24127469,2967.5,2967.1,1.8398386]
[1644699772990,0.64127469,2967.4,2967.1,1.8398386]
[1644699773389,0.64127469,2967.4,2967.1,1.83000662]
[1644699773791,1.4801621,2967.3,2967.1,1.83983867]
[1644699774027,0.3,2967.2,2967.1,1.83983867]
[1644699774425,1.73427439,2967.2,2967.1,1.83983867]
[1644699774626,2.37554908,2967.2,2967.1,1.83000662]
[1644699774826,3.03427439,2967.2,2967.1,1.83000662]
[1644699775026,3.67554908,2967.2,2967.1,1.83000662]
[1644699775429,3.67474019,2967.2,2967.1,1.83000662]
[1644699775629,3.37554908,2967.2,2967.1,1.83000662]
[1644699775827,2.37554908,2967.2,2967.1,1.83000662]
[1644699776029,1.73427439,2967.2,2967.1,1.83000662]
[1644699777131,2.67554908,2967.2,2967.1,1.83000662]
[1644699777331,3.03427439,2967.2,2967.1,1.83000662]
[1644699777532,3.67554908,2967.2,2967.1,1.83000662]
[1644699779880,3.67554908,2967.2,2967.1,0.30009595]
[1644699780282,3.03427439,2967.2,2967.1,0.30009595]
[1644699780684,2.03427439,2967.2,2967.1,0.30009595]
[1644699780882,3.03427439,2967.2,2967.1,0.30009595]
[1644699781083,2.03427439,2967.2,2967.1,0.30009595]
[1644699781284,3.03427439,2967.2,2967.1,0.30009595]
[1644699781534,1.98427439,2967.2,2967.1,0.30009595]
[1644699781737,3.32695977,2967.2,2967.1,0.30009595]
[1644699781934,2.32695977,2967.2,2967.1,0.30009595]
[1644699782336,1.68427439,2967.2,2967.1,0.30009595]
[1644699783335,1.98427439,2967.2,2967.1,0.30009595]
[1644699783534,2.62695977,2967.2,2967.1,0.30009595]
[1644699784937,2.98427439,2967.2,2967.1,0.30009595]
[1644699785876,4.57646411,2967.2,2967.1,0.30009595]
[1644699786080,2.72143119,2967.2,2967.1,0.30009595]
[1644699786279,4.57646411,2967.2,2967.1,0.30009595]
[1644699786483,3.57646411,2967.2,2967.1,0.30009595]
[1644699786782,8.01340104,2967.2,2967.1,0.30009595]
[1644699786983,4.57646411,2967.2,2967.1,0.30009595]
[1644699787183,3.72143119,2967.2,2967.1,0.30009595]
[1644699787383,4.57646411,2967.2,2967.1,0.30009595]
[1644699787584,3.72143119,2967.2,2967.1,0.25619595]
[1644699787986,2.98427439,2967.2,2967.1,0.25619595]
[1644699788290,3.83930731,2967.2,2967.1,0.25619595]
[1644699788587,2.98427439,2967.2,2967.1,0.25619595]
[1644699788938,6.65,2967.1,2966.6,0.00323556]
[1644699789129,0.88681704,2966.7,2966.6,0.00323556]
[1644699789328,3.78959143,2966.7,2966.6,0.00323556]
[1644699790329,6.59879912,2966.7,2966.6,0.00323556]
[1644699790529,7.45671993,2966.7,2966.6,0.00323556]
[1644699791330,7.45671993,2966.7,2966.6,3.40323556]
[1644699793282,7.45702332,2966.7,2966.6,3.40323556]
[1644699793485,6.59910251,2966.7,2966.6,3.40323556]
[1644699793884,7.45684585,2966.7,2966.6,3.40323556]
[1644699794085,6.43060251,2966.7,2966.6,3.40323556]
[1644699794285,2.73457778,2966.7,2966.6,3.40323556]
[1644699794884,3.59232112,2966.7,2966.6,3.40323556]
[1644699795384,2.73457778,2966.7,2966.6,3.40242667]
[1644699796438,2.73376889,2966.7,2966.6,3.40242667]
[1644699798943,1.43457778,2966.7,2966.6,3.40242667]
[1644699799344,2.46082112,2966.8,2966.6,3.40242667]
[1644699799541,1.43457778,2966.7,2966.6,3.40242667]
[1644699799941,2.29232112,2966.8,2966.6,1.87223024]
[1644699800187,1.43457778,2966.7,2966.6,1.88150227]
[1644699800389,2.43457778,2966.7,2966.6,1.88150227]
[1644699800991,2.43457778,2966.7,2966.6,1.87223024]
[1644699802396,3.29232112,2966.7,2966.6,1.87223024]
[1644699802596,2.43457778,2966.7,2966.6,1.87223024]
[1644699802997,6.81353143,2966.7,2966.6,1.87223024]
[1644699803197,1.43457778,2966.7,2966.6,1.87223024]
[1644699803397,3.29232112,2966.7,2966.6,1.87223024]
[1644699803802,2.43457778,2966.7,2966.6,1.87223024]
[1644699805938,5.89602637,2966.7,2966.6,1.87223024]
[1644699806340,6.75376971,2966.7,2966.6,1.87223024]
[1644699806740,5.89602637,2966.7,2966.6,1.87223024]
[1644699807786,2.43457778,2966.7,2966.6,1.87223024]
[1644699809590,2.43457778,2966.7,2966.5,0.00925763]
[1644699809591,6.65,2966.6,2966.5,0.00925763]
[1644699809790,15.50717088,2966.6,2966.5,1e-08]
[1644699809989,18.81503756,2966.6,2966.5,1e-08]
[1644699810189,22.60833756,2966.6,2966.5,1e-08]
[1644699810390,22.64219276,2966.6,2966.5,1e-08]
[1644699810588,0.64330212,2965.8,2964.9,0.0035791]
[1644699810791,1.73457778,2965.7,2964.9,0.0035791]
[1644699810988,0.64330212,2965.8,2964.8,4.9316]
[1644699810989,1.43457778,2965.6,2964.8,4.7851791]
[1644699811190,1.43457778,2965.5,2964.8,3.6164791]
[1644699811438,1.43457778,2965.4,2964.8,0.485]
[1644699811639,0.64330212,2965.8,2964.8,0.485]
[1644699811640,0.94330212,2965.8,2964.8,0.485]
[1644699811842,1.43476254,2965.7,2964.8,0.485]
[1644699812440,1.46861774,2965.7,2964.8,0.485]
[1644699812641,1.43476254,2965.6,2964.8,0.485]
[1644699813241,1.43476254,2965.6,2965.1,0.00928222]
[1644699813439,1.46861774,2965.6,2965.1,0.00928222]
[1644699813741,1.43476254,2965.5,2965.1,0.00928222]
[1644699814142,1.43476254,2965.5,2964.8,3.885]
[1644699814541,1.46861774,2965.5,2964.8,3.885]
[1644699814741,0.0338552,2965.5,2964.8,3.885]
[1644699815579,0.0338552,2965.5,2964.8,3.635]
[1644699815781,0.0338552,2965.5,2965.0,5.0]
[1644699815981,0.0338552,2965.5,2965.2,6.057]
[1644699816184,0.0338552,2965.5,2965.3,0.485]
[1644699816380,0.0338552,2965.5,2965.3,1.485]
[1644699816586,0.0338552,2965.5,2965.4,0.65655745]
[1644699816784,0.0338552,2965.5,2965.4,0.485]
[1644699818284,0.0338552,2965.5,2965.4,3.55403781]
[1644699818482,0.0338552,2965.5,2965.4,4.55403781]
[1644699818683,0.0338552,2965.5,2965.4,4.72263781]
[1644699818944,0.0338552,2965.5,2965.4,3.62263781]
[1644699819144,0.64289075,2966.5,2965.5,4.8]
[1644699819341,1.43450991,2966.4,2965.6,4.92167763]
[1644699819739,1.43450991,2966.4,2965.6,10.97867763]
[1644699820538,1.43450991,2966.4,2965.9,0.0091563]
[1644699820739,1.43450991,2966.4,2966.0,0.485]
[1644699821442,1.46836511,2966.4,2966.0,0.485]
[1644699821645,1.43450991,2966.3,2966.1,0.00915594]
[1644699821843,1.43450991,2966.3,2966.2,0.485]
[1644699822041,1.43450991,2966.3,2965.6,10.53030688]
[1644699822042,0.96084406,2966.1,2965.6,10.53030688]
[1644699822243,1.43450991,2966.0,2965.7,0.485]
[1644699822441,1.46836511,2966.0,2965.8,3.04365019]
[1644699822683,0.0338552,2966.0,2965.9,0.485]
[1644699823083,1.46832469,2966.0,2965.9,0.485]
[1644699824085,1.46832469,2966.0,2965.9,3.835]
[1644699824287,1.46832469,2966.0,2965.9,7.00112554]
[1644699824486,1.46832469,2966.0,2965.9,3.835]
[1644699825487,0.96084406,2966.1,2966.0,4.9]
[1644699825691,0.96084406,2966.1,2966.0,8.95123746]
[1644699825692,0.97777166,2966.1,2966.0,8.95123746]
[1644699826090,0.97777166,2966.1,2966.0,4.05123746]
[1644699827949,0.97777166,2966.1,2966.0,0.485]
[1644699829251,0.97777166,2966.1,2966.0,3.54417452]
[1644699829454,0.97777166,2966.1,2966.0,3.58707953]
[1644699830484,0.92777166,2966.1,2966.0,3.58707953]
[1644699830784,0.92777166,2966.1,2966.0,0.485]
[1644699831187,0.92777166,2966.1,2966.0,3.53865636]
[1644699831588,0.92777166,2966.1,2966.0,3.55076395]
[1644699832188,0.92777166,2966.1,2966.0,4.55076395]
[1644699832388,0.92777166,2966.1,2966.0,3.55076395]
[1644699832789,0.92777166,2966.1,2966.0,5.15076395]
[1644699833941,0.00981303,2966.5,2966.1,25.55]
[1644699834135,0.00981303,2966.5,2966.3,0.84246]
[1644699834335,0.00981303,2966.5,2966.4,3.76548098]
[1644699834736,0.64289075,2967.3,2966.4,4.76548098]
[1644699834937,0.64289075,2967.4,2966.6,0.80432765]
[1644699835141,0.64289075,2967.4,2966.7,3.70832765]
[1644699835340,0.81139075,2967.4,2966.7,0.485]
[1644699835540,0.64289075,2967.4,2966.7,0.485]
[1644699836143,0.00981212,2967.2,2966.7,0.485]
[1644699836742,0.00981212,2967.2,2966.8,3.02234803]
[1644699836945,0.00981212,2967.2,2966.8,3.50734803]
[1644699837144,0.1685,2967.5,2966.8,0.485]
[1644699837341,0.1685,2967.5,2966.9,3.03509036]
[1644699837342,0.00981221,2967.1,2966.9,3.03509036]
[1644699837542,0.00981221,2967.1,2966.8,0.485]
[1644699838185,0.1685,2967.5,2966.9,3.0342145]
[1644699838385,0.1685,2967.5,2966.8,0.485]
[1644699838586,0.00981231,2967.1,2966.8,0.485]
[1644699838985,0.00981231,2967.1,2966.9,3.02205882]
[1644699839186,0.00981231,2967.1,2966.8,0.485]
[1644699839387,0.81139075,2967.6,2966.9,3.0340909]
[1644699839790,0.00981221,2967.1,2966.9,3.0340909]
[1644699839987,0.00981221,2967.1,2966.8,0.485]
[1644699840188,0.00981221,2967.1,2966.9,3.08492252]
[1644699840590,0.1685,2967.6,2966.9,3.08492252]
[1644699840991,0.00981221,2967.1,2966.9,3.08492252]
[1644699841188,0.00981221,2967.1,2966.8,0.485]
[1644699841848,0.81139075,2967.6,2966.8,0.485]
[1644699842047,0.97,2966.7,2966.4,3.0683475]
[1644699842247,0.97,2966.7,2966.5,0.6535]
[1644699842450,0.97,2966.7,2966.6,0.485]
[1644699844353,0.97,2966.7,2966.6,0.135]
[1644699846388,0.97,2966.7,2966.6,3.535]
[1644699846593,2.40420595,2966.7,2966.6,3.535]
[1644699847893,2.40420595,2966.7,2966.6,3.4]
[1644699852143,3.00420595,2966.7,2966.6,3.4]
[1644699852342,4.00420595,2966.7,2966.6,3.4]
[1644699855597,4.6470967,2966.7,2966.6,3.4]
[1644699856441,2.40420595,2966.7,2966.6,3.4]
[1644699856643,2.70420595,2966.7,2966.6,3.4]
[1644699856848,2.40420595,2966.7,2966.6,3.4]
[1644699857644,2.70420595,2966.7,2966.6,3.4]
[1644699857844,2.40420595,2966.7,2966.6,3.4]
[1644699858147,2.70420595,2966.7,2966.6,3.4]
[1644699858343,2.40420595,2966.7,2966.6,3.4]
[1644699859144,2.70420595,2966.7,2966.6,3.4]
[1644699859346,2.40420595,2966.7,2966.6,3.4]
[1644699859745,2.70420595,2966.7,2966.6,3.4]
[1644699859945,2.40420595,2966.7,2966.6,3.4]
[1644699861189,3.00420595,2966.7,2966.6,3.4]
[1644699861393,4.00420595,2966.7,2966.6,3.4]
[1644699862091,4.00420595,2966.7,2966.6,1.86994899]
[1644699862092,2.40420595,2966.7,2966.6,1.86994899]
[1644699864344,2.70420595,2966.7,2966.6,1.86994899]
[1644699865343,2.40420595,2966.7,2966.6,1.86994899]
[1644699867154,2.40420595,2966.7,2966.6,1.76994899]
[1644699870295,3.00420595,2966.7,2966.6,1.76994899]
[1644699870492,2.40420595,2966.7,2966.6,1.76994899]
[1644699873547,3.0470967,2966.7,2966.6,1.76994899]
[1644699873950,2.40420595,2966.7,2966.6,1.76994899]
[1644699874150,3.0470967,2966.7,2966.6,1.76994899]
[1644699875786,2.40420595,2966.7,2966.6,1.76994899]
[1644699876390,3.0470967,2966.7,2966.6,1.76994899]
[1644699877797,2.40420595,2966.7,2966.6,1.76994899]
[1644699877995,3.0470967,2966.7,2966.6,1.76994899]
[1644699878938,2.40420595,2966.7,2966.6,1.76994899]
[1644699879743,3.0470967,2966.7,2966.6,1.76994899]
[1644699879943,2.40420595,2966.7,2966.6,1.76994899]
[1644699882148,2.40420595,2966.7,2966.6,0.2399441]
[1644699885402,3.0470967,2966.7,2966.6,0.2399441]
[1644699887842,2.40420595,2966.7,2966.6,0.2399441]
[1644699888143,3.0470967,2966.7,2966.6,0.2399441]
[1644699891290,2.40420595,2966.7,2966.6,0.2399441]
[1644699892299,3.04877626,2966.7,2966.6,0.2399441]
[1644699892494,2.40420595,2966.7,2966.6,0.2399441]
[1644699892893,3.04877959,2966.7,2966.6,0.2399441]
[1644699893495,2.40420595,2966.7,2966.6,0.2399441]
[1644699896847,2.70420595,2966.7,2966.6,0.2399441]
[1644699897350,2.40420595,2966.7,2966.6,0.2399441]
[1644699898394,3.26139361,2966.7,2966.6,0.2399441]
[1644699898894,2.40420595,2966.7,2966.6,0.2399441]
[1644699900396,3.09982233,2966.7,2966.6,0.2399441]
[1644699900595,3.26139361,2966.7,2966.6,0.2399441]
[1644699902143,0.47988819,2966.1,2966.0,0.00928939]
[1644699902546,1.91409414,2966.1,2966.0,0.00928939]
[1644699903142,1.91409414,2966.1,2965.9,0.48847011]
[1644699903342,1.43420595,2966.0,2965.9,0.49775893]
[1644699903543,1.43420595,2966.0,2965.9,0.49428882]
[1644699904344,1.43420595,2966.0,2965.9,0.485]
[1644699907798,1.43420595,2966.0,2965.9,0.48307603]
[1644699909541,1.43420595,2966.0,2965.9,3.69140936]
[1644699909842,1.43420595,2966.0,2965.9,0.48115903]
[1644699910442,1.43420595,2966.0,2965.9,0.47925503]
[1644699914189,1.43420595,2966.0,2965.9,3.87925503]
[1644699917041,1.43420595,2966.0,2965.9,3.4]
[1644699917242,0.47988819,2966.1,2965.9,3.4]
[1644699917243,2.55875699,2966.1,2965.9,3.4]
[1644699917442,2.0788688,2966.0,2965.9,3.4]
[1644699917743,2.19722601,2966.0,2965.9,3.4]
[1644699917941,6.65,2965.9,2965.8,1e-08]
[1644699918144,8.25270595,2965.9,2965.8,1e-08]
[1644699918441,9.10989361,2965.9,2965.8,1e-08]
[1644699918643,9.70989361,2965.9,2964.8,3.50347011]
[1644699918842,0.64338922,2965.7,2964.8,3.50347011]
[1644699919143,0.82389185,2965.6,2964.8,0.00347011]
[1644699919342,1.43420595,2965.5,2964.8,0.00347011]
[1644699919743,1.43420595,2965.4,2964.8,0.00347011]
[1644699919943,4.87668922,2965.8,2964.8,0.00347011]
[1644699919944,1.43420595,2965.3,2964.8,0.00347011]
[1644699920194,1.43420595,2965.2,2964.8,0.17207011]
[1644699920392,4.2333,2965.8,2964.8,0.17207011]
[1644699920698,1.43479695,2965.7,2964.8,0.17207011]
[1644699921392,1.43479695,2965.7,2965.1,0.00573209]
[1644699922198,1.43479695,2965.7,2964.8,0.17207011]
[1644699922499,1.43479695,2965.7,2965.3,0.00981628]
[1644699922500,0.86045648,2965.5,2965.3,0.00981628]
[1644699922699,6.65,2965.3,2964.8,0.02310858]
[1644699922899,1.43479695,2965.2,2964.8,0.02310858]
[1644699923097,0.1686,2965.1,2964.8,0.02310858]
[1644699923301,1.43479695,2965.0,2964.8,0.02310858]
[1644699923499,1.43479695,2965.0,2964.1,0.25]
[1644699923698,1.43479695,2965.0,2964.0,3.2259]
[1644699923699,1.43479695,2964.9,2964.0,3.2259]
[1644699924540,1.43479695,2964.9,2964.0,6.6259]
[1644699924740,4.94827652,2964.9,2964.0,6.6259]
[1644699924940,1.43479695,2964.8,2964.0,6.6259]
[1644699925141,1.43479695,2964.7,2964.0,6.6259]
[1644699925341,0.1686,2965.2,2964.0,6.6259]
[1644699925342,3.73118519,2965.1,2964.0,6.6259]
[1644699925542,1.43512274,2965.0,2964.0,6.6259]